[Event "67th Mexican-ch Open 2022"]
[Site "Chihuahua"]
[Date "2022.04.14"]
[Round "3.13"]
[White "Diaz Villagran, Robert"]
[Black "Paredes Guzman, Francisco Javier"]
[Result "1-0"]
[ECO "B22"]
[WhiteElo "2318"]
[BlackElo "1891"]
[Annotator "TA"]
[PlyCount "105"]
[EventDate "2022.04.12"]
[EventType "swiss"]
[EventCountry "MEX"]
[SourceTitle "playchess.com"]
[Source "ChessBase"]
[SourceQuality "1"]
[TimeControl "5400+30"]

{[%evp 11,105,21,23,29,31,33,25,0,0,33,0,13,12,20,15,-197,-207,-209,0,0,0,0,0,0,-16,0,0,-8,0,0,0,0,0,0,16,10,18,10,35,29,42,34,33,0,30,46,176,171,166,95,84,86,173,166,206,203,207,200,187,195,284,243,299,297,254,247,429,417,540,533,576,564,567,553,511,528,523,522,725,718,687,654,582,551,717,706,697,716,637,554,1000,974,2827,2336,1778,1665]} 1. e4 {[%emt 1:31:00]} c5 {[%emt 0:01:53]} 2. c3 {[%emt 0:00:00]} d5 {[%emt 0:00:10]} 3. exd5 {[%emt 0:00:00]} Qxd5 {[%emt 0:00:05]} 4. d4 {[%emt 0:00:00]} Nf6 {[%emt 0:00:46]} 5. Nf3 {[%emt 0:00:00]} Bg4 {[%emt 0:00:06][%cal Bc8g4,Bg4h5,Bh5g6][%mdl 32]} 6. Nbd2 {[%emt 0:00:00]} Nc6 {[%emt 0:02:59][%cal Rc5d4]} 7. dxc5 {[%emt 0:00:00] B22: Sicilian: 2 c3.} e5 {[%emt 0:32:26] Hoping for ...e4.} 8. Bc4 {[%emt 0:00:00]} Qd7 {[%emt 0:02:50]} 9. Qe2 {[%emt 0:00:00] Prevents e4. White has an edge.} O-O-O {[%emt 0:09:55][%cal Oe5e4]} 10. h3 {[%emt 0:00:00]} Bh5 {[%emt 0:03:47][%cal Oe5e4] Strongly threatening ...e4!} 11. g4 {[%emt 0:00:00]} Bg6 {[%emt 0:00:33] [#]} 12. Nb3 $146 {[%emt 0:00:00]} (12. Nxe5 $2 Nxe5 13. Bb5 (13. Qxe5 $2 Re8 $19) 13... Qd5 $19) ({Predecessor:} 12. b4 Nd5 13. b5 Nf4 14. Qf1 Na5 15. c6 bxc6 16. bxc6 Qxc6 17. Ba6+ Kc7 18. Qb5 Nd3+ 19. Kf1 Qxc3 20. Nc4 Bb4 21. Rb1 Qc2 {0-1 (21) Drobotov,G (1700)-Turner,L (1609) LSS email 2008}) 12... h5 {[%emt 0:07:48][%cal Bh7h5,Bh5g4][%mdl 32]} 13. Ng5 $2 {[%emt 0:00:00]} (13. g5 $11 Nd5 14. Nh4 (14. Nxe5 $2 Nxe5 15. Bb5 Qf5 $19)) 13... hxg4 $19 {[%emt 0:03:00]} 14. Be3 {[%emt 0:00:00]} Ne4 $2 {[%emt 0:08:02]} ({Better is} 14... gxh3 $19 {And now ...Rh4 would win.} 15. f3 Rh5) 15. Nxf7 $11 {[%emt 0:00:00]} Bxf7 {[%emt 0:09:45]} 16. Bxf7 {[%emt 0:00:00]} Nxc3 {[%emt 0:00:17]} 17. bxc3 {[%emt 0:00:00]} Qxf7 {[%emt 0:00:07]} 18. Qxg4+ {[%emt 0:00:00]} Kb8 {[%emt 0:00:29]} 19. Ke2 {[%emt 0:00:00]} Be7 {[%emt 0:01:36] aiming for ...Rh4.} (19... Qd5 20. Rhd1 Qf7 21. Na5 $1 $16) 20. h4 $1 {[%emt 0:00:00]} Qg8 {[%emt 0:01:00]} 21. Qe4 {[%emt 0:00:00]} Rh5 {[%emt 0:01:52]} 22. Nd2 {[%emt 0:01:50]} Qe6 {[%emt 0:01:30]} 23. Nf3 {[%emt 0:03:13]} Rf5 {[%emt 0:03:29]} 24. Rhg1 {[%emt 0:01:45]} Rdf8 {[%emt 0:00:22]} 25. Nd2 {[%emt 0:00:11]} Qf7 {[%emt 0:00:27][%cal Rf5f2]} 26. Rg2 {[%emt 0:00:27]} Qh5+ {[%emt 0:00:31]} 27. Qg4 {[%emt 0:00:28]} Qh7 {[%emt 0:01:39][%cal Oe5e4]} (27... Qxh4 28. Qxh4 Bxh4 29. Rxg7 $16) 28. Rb1 {[%emt 0:01:29]} Qg8 {[%emt 0:01:55]} ({Weaker is} 28... Qxh4 29. Qxh4 Bxh4 30. Rxg7 $16) ({Less strong is} 28... Bxh4 29. Qg6 (29. Qxg7 Qh5+ 30. Qg4 Be7 $16) 29... Qxg6 30. Rxg6 $16) (28... Ka8 $14) 29. Qc4 $18 {[%emt 0:00:45]} R8f7 {[%emt 0:00:59]} 30. Qa6 {[%emt 0:00:56] The board is on fire.} ({White should try} 30. Qb3 $18 {[%csl Gb1][%cal Rb3b7]} Qc8 31. Rg6) 30... Qc8 $16 {[%emt 0:00:59]} 31. Ne4 {[%emt 0:01:04]} Ka8 {[%emt 0:00:42] [#]} (31... Bxh4 $2 32. Nd6 R5f6 33. Nxc8 $18) (31... Rf3 $16) 32. Qc4 $1 $18 {[%emt 0:00:01]} Bf8 {[%emt 0:01:06]} (32... Bxh4 $2 33. Nd6 Qh8 34. Nxf5 Rxf5 35. Rh1 Qh5+ 36. Qg4 Qxg4+ 37. Rxg4 $18) 33. Rg6 {[%emt 0:00:35]} Rd7 {[%emt 0:00:57]} 34. Rd1 {[%emt 0:00:37] Active counter play!} Rxd1 {[%emt 0:00:23]} 35. Kxd1 {[%emt 0:00:01]} Qd7+ {[%emt 0:00:32]} (35... Qe8 {was called for.} 36. Qe6 Qxe6 37. Rxe6 Kb8) 36. Ke2 {[%emt 0:00:37]} Rf7 {[%emt 0:01:13]} 37. Qe6 {[%emt 0:00:28]} Qxe6 {[%emt 0:00:42]} 38. Rxe6 {[%emt 0:00:02]} Re7 {[%emt 0:00:20] Against Re8+} (38... Kb8 39. Ng5 Rc7) 39. Rxe7 {[%emt 0:00:58]} Bxe7 {[%emt 0:00:02][%mdl 4096] Endgame KBN-KBN} 40. h5 {[%emt 0:00:05] White is clearly winning.} Kb8 {[%emt 0:00:55]} 41. Kf3 {[%emt 0:00:20]} Kc7 {[%emt 0:00:22]} 42. Kg4 {[%emt 0:00:01]} Kd7 {[%emt 0:00:53]} 43. Kf5 {[%emt 0:00:01]} Bf8 {[%emt 0:00:14]} 44. Bg5 {[%emt 0:01:45]} b6 {[%emt 0:00:29]} 45. cxb6 {[%emt 0:00:17]} axb6 {[%emt 0:00:05]} 46. a4 {[%emt 0:00:29]} Na5 {[%emt 0:00:47]} 47. Nd2 {[%emt 0:02:23] Inhibits Nc4.} Nb7 {[%emt 0:00:43]} 48. Be3 {[%emt 0:00:59]} Nd6+ {[%emt 0:01:25]} 49. Kxe5 {[%emt 0:00:05]} Be7 {[%emt 0:00:24]} 50. Kd5 {[%emt 0:00:15]} Nc8 {[%emt 0:00:16]} 51. Nc4 {[%emt 0:00:10]} Kc7 {[%emt 0:00:17]} 52. Bd4 {[%emt 0:00:10]} Bf8 {[%emt 0:00:19]} 53. Ke6 {[%emt 0:00:02] Quite a comeback for White.  Weighted Error Value: White=0.12 (very precise) /Black=0.31} 1-0

[Event "67th Mexican-ch Open 2022"]
[Site "Chihuahua"]
[Date "2022.04.14"]
[Round "3.14"]
[White "Amezcua Luria, Jesus"]
[Black "Morales Garcia, Sergio Joshafatt"]
[Result "0-1"]
[ECO "D46"]
[WhiteElo "2001"]
[BlackElo "2246"]
[Annotator "TA"]
[PlyCount "108"]
[EventDate "2022.04.12"]
[EventType "swiss"]
[EventCountry "MEX"]
[SourceTitle "playchess.com"]
[Source "ChessBase"]
[SourceQuality "1"]
[TimeControl "5400+30"]

{[%evp 20,108,14,7,23,-5,65,56,77,70,69,29,42,36,47,22,21,28,14,13,18,22,88,60,182,166,158,177,208,213,288,272,323,298,287,295,288,157,256,178,337,341,342,220,554,416,557,535,625,626,645,626,29989,541,809,793,1041,18,19,18,16,29,142,-487,-253,-514,-494,-1249,-1239,-1234,-1197,-1431,-1114,-1305,-1080,-1179,-1090,-1239,-1233,-1558,-1602,-1808,-1668,-29985,-29986,-29986,-29987,-29987,-29986,-29991,-29989]} 1. d4 {[%emt 0:06:49]} d5 {[%emt 0:00:07]} 2. c4 {[%emt 0:00:30]} c6 {[%emt 0:00:04]} 3. Nf3 {[%emt 0:00:07]} Nf6 {[%emt 0:00:04]} 4. Nc3 {[%emt 0:00:07]} e6 {[%emt 0:00:06]} 5. e3 {[%emt 0:00:17]} Nbd7 {[%emt 0:00:27]} 6. Qc2 {[%emt 0:00:25]} Bd6 {[%emt 0:00:36]} 7. Bd3 {[%emt 0:00:35]} dxc4 {[%emt 0:01:03]} 8. Bxc4 {[%emt 0:00:10]} O-O {[%emt 0:00:14]} 9. O-O {[%emt 0:00:24]} Qe7 {[%emt 0:01:06]} 10. e4 {[%emt 0:03:37]} e5 {[%emt 0:03:59]} 11. Be3 {[%emt 0:04:45]} b5 {[%emt 0:15:16] D46: Semi-Slav: 5 e3 Nbd7 6 Bd3, Black avoids the Meran.} 12. Bd3 {[%emt 0:02:41] [#]} b4 $146 {[%emt 0:22:30]} ({Better is} 12... Ng4 $11) ({Predecessor:} 12... h6 13. Ne2 Bb7 14. Ng3 Ng4 15. Nf5 Qf6 16. Nxd6 Qxd6 17. Rad1 Rad8 18. h3 Nxe3 19. fxe3 {0-1 (42) Keymer,V (2588)-Bazeev,G (2398) Tornelo INT 2020}) 13. Ne2 $14 {[%emt 0:04:29]} Bb7 {[%emt 0:16:22] White is slightly better.} 14. Ng3 {[%emt 0:08:03]} g6 {[%emt 0:00:36] Against Nf5} 15. Rae1 {[%emt 0:20:09]} Ng4 {[%emt 0:03:51]} 16. Bg5 {[%emt 0:11:37]} f6 {[%emt 0:00:13]} 17. Bc4+ {[%emt 0:00:54]} Kh8 {[%emt 0:03:52]} 18. Bc1 {[%emt 0:01:53][%cal Bg5c1,Bc1f4,Bf4g3][%mdl 32]} exd4 {[%emt 0:04:15]} 19. Nxd4 {[%emt 0:00:24]} Bxg3 {[%emt 0:01:43]} 20. hxg3 {[%emt 0:01:20]} Qc5 {[%emt 0:02:27] [#]} (20... Nge5 $11 {keeps the balance.}) 21. Be6 $1 {[%emt 0:09:27] This bishop pair is nice.} Qh5 {[%emt 0:00:48]} (21... Nge5 22. Bxd7) 22. Bxg4 $18 {[%emt 0:00:10]} Qxg4 {[%emt 0:00:04]} 23. Bf4 {[%emt 0:03:25]} (23. Nxc6 $2 Rfc8 24. Qd1 Qxd1 25. Rxd1 Bxc6 $19) 23... Qh5 {[%emt 0:12:08]} 24. Rd1 {[%emt 0:06:14]} (24. Nxc6 $2 Rfc8 25. Rc1 Bxc6 $19) (24. Bd6 $6 Rfe8 $16) 24... Rf7 {[%emt 0:05:39]} 25. Qc4 {[%emt 0:04:02]} (25. Nxc6 $6 Kg8 $16) 25... g5 {[%emt 0:00:19] [#]} 26. g4 $1 {[%emt 0:01:23]} Qg6 {[%emt 0:01:25]} 27. Bg3 {[%emt 0:00:20]} (27. Qxb4 Ba6 28. Bd6 Bxf1 29. Rxf1 c5 30. Bxc5 Rb8 $17) 27... Nb6 {[%emt 0:04:46]} 28. Qe6 {[%emt 0:04:02]} (28. Qxb4 Qxe4 29. f3 Qe3+ 30. Bf2 Nd5 $18) ({White should play} 28. Qe2 $18) 28... Rff8 {[%emt 0:00:00]} (28... Bc8 $16 {might work better.} 29. Qe8+ (29. Qxc6 Bxg4 30. f3 Bd7 $16) 29... Qg8 30. Qxg8+ (30. Qxc6 Bxg4 31. f3 Bd7 $16) 30... Kxg8) 29. Rfe1 {[%emt 0:04:25] Strongly threatening Qd6.} (29. Nxc6 Rae8 30. Ne7 Qg7 $15) 29... Rae8 $2 {[%emt 0:00:00]} (29... Bc8 30. Qxc6 Bxg4) 30. Qd6 {[%emt 0:00:01]} Qf7 {[%emt 0:00:44]} 31. Qxb4 {[%emt 0:01:29]} Qxa2 $2 {[%emt 0:00:33]} (31... Rxe4 {is more resistant.} 32. Rxe4 c5 33. Qxc5 Bxe4) 32. Nf5 {[%emt 0:00:27]} Qc4 {[%emt 0:00:21]} 33. Qa3 {[%emt 0:00:35]} Qa4 {[%emt 0:00:22]} 34. Qd6 {[%emt 0:00:57]} Bc8 {[%emt 0:00:37]} 35. e5 {[%emt 0:01:11]} Qxg4 {[%emt 0:00:49] [#]} 36. Ne7 {[%emt 0:00:25]} (36. exf6 $142 $1 Qd4 (36... Nd5 37. f7) 37. Qxd4 c5 {[#]} 38. Rxe8 $1 h5 39. Qd2 Bxf5 40. Qxg5 Bg6 41. Qxg6 Rxe8 42. Qg7#) 36... Nc4 {[%emt 0:00:19]} 37. Qc5 {[%emt 0:00:17]} f5 {[%emt 0:00:42]} 38. Nxc6 $2 {[%emt 0:00:22]} ({Only move:} 38. e6 $18 Kg7 39. Nxc8) 38... f4 $11 {[%emt 0:00:16]} 39. Bh2 {[%emt 0:00:40]} f3 {[%emt 0:00:15][%csl Gf3][%cal Rg4g2]} ({Don't take} 39... Nxb2 40. Rd2 (40. f3 $2 Qh4 $19) 40... f3 41. Bg3 $16) 40. Bg3 {[%emt 0:00:17]} fxg2 {[%emt 0:00:17]} (40... Nxb2 $2 41. Rd2 Na4 42. Qxa7 $18) (40... Be6 $1 $11 41. b3 Nb6) 41. Kxg2 $2 {[%emt 0:00:52][%mdl 8192]} (41. e6 $1 $16 {[%cal Re6e7] is necessary to keep the advantage. Threatens to win with e7.} Bxe6 42. b3) 41... Qf3+ $40 {[%emt 0:00:25][%mdl 128] White is in trouble.} (41... Nxb2 42. Rd6 Bb7 43. Qc3 $11) (41... Bb7 $142 42. Kg1 Rf3) 42. Kh2 $2 {[%emt 0:00:12]} (42. Kg1 {was the only chance.} Bb7 43. Rd5) 42... Re6 $19 {[%emt 0:00:51] ( -> ...Rh6+)} ({Worse is} 42... Bb7 43. Qxc4 Bxc6 44. Qf1 $19) 43. Qxf8+ {[%emt 0:00:45]} (43. Kg1 $142 Rxc6 44. Qd5) 43... Qxf8 {[%emt 0:00:02]} 44. Rd8 {[%emt 0:00:06]} Re8 {[%emt 0:00:23] And now ...Bb7 would win.} 45. Red1 {[%emt 0:00:17]} Kg7 {[%emt 0:00:26][%cal Of8f3] White must now prevent ...Qf3!} 46. R8d4 {[%emt 0:00:53]} Be6 {[%emt 0:00:26]} 47. b3 {[%emt 0:00:25]} Nb6 {[%emt 0:00:18]} 48. R1d3 {[%emt 0:00:44]} h5 {[%emt 0:00:22]} 49. f3 {[%emt 0:00:34]} Qf5 {[%emt 0:00:28]} 50. Kg1 {[%emt 0:00:38]} Rc8 {[%emt 0:00:36]} 51. Rd6 {[%emt 0:00:26] [#]} Rxc6 $1 {[%emt 0:00:24] Black mates.} 52. Rxc6 {[%emt 0:00:09]} Qxd3 {[%emt 0:00:05]} 53. Rxe6 {[%emt 0:00:04]} Qxf3 {[%emt 0:00:20]} 54. Kh2 {[%emt 0:00:46]} h4 {[%emt 0:00:06] Weighted Error Value: White=1.08/Black=0.81} 0-1

[Event "67th Mexican-ch Open 2022"]
[Site "Chihuahua"]
[Date "2022.04.14"]
[Round "3.15"]
[White "Obregon Rivero, Juan Carlos"]
[Black "Martinez Martinez, Ian Alf"]
[Result "1-0"]
[ECO "D11"]
[WhiteElo "2536"]
[BlackElo "1821"]
[Annotator "TA"]
[PlyCount "65"]
[EventDate "2022.04.12"]
[EventType "swiss"]
[EventCountry "MEX"]
[SourceTitle "playchess.com"]
[Source "ChessBase"]
[SourceQuality "1"]
[TimeControl "5400+30"]

{[%evp 11,65,28,18,8,19,-14,-18,-17,-11,-13,-9,-25,-22,-30,-8,0,0,0,14,0,0,-18,45,48,81,89,75,52,298,297,290,259,287,261,307,287,389,330,458,411,531,458,450,436,397,222,1104,1108,1114,1054,1328,1218,1290,867,821,809]} 1. d4 {[%emt 0:02:32]} d5 {[%emt 0:00:36]} 2. c4 {[%emt 0:00:15]} c6 {[%emt 0:00:18]} 3. Nf3 {[%emt 0:00:06]} Nf6 {[%emt 0:00:08]} 4. e3 {[%emt 0:00:14]} Bg4 {[%emt 0:00:49]} 5. h3 {[%emt 0:00:13]} Bh5 {[%emt 0:00:08]} 6. Nc3 {[%emt 0:00:27]} e6 {[%emt 0:01:33]} 7. Qb3 {[%emt 0:00:13] D11: Slav Defence: 3 Nf3 sidelines and 3...Nf6 4 e3 Bg4.} Qb6 {[%emt 0:04:49]} 8. c5 {[%emt 0:00:18] 8.Nh4 is setting a new trend.} Qc7 {[%emt 0:01:29]} 9. g4 {[%emt 0:00:11] The position is equal.} Bg6 {[%emt 0:01:41]} 10. Ne5 {[%emt 0:02:11]} Nbd7 {[%emt 0:12:55]} 11. Nxg6 {[%emt 0:00:02]} hxg6 {[%emt 0:00:28]} 12. Bg2 {[%emt 0:00:05]} Be7 {[%emt 0:10:36]} 13. g5 $36 {[%emt 0:02:55][%mdl 2048] White is more active.} Nh5 {[%emt 0:08:26]} 14. h4 {[%emt 0:00:01] [#]} Rb8 $146 {[%emt 0:07:34]} ({Predecessor:} 14... b6 15. cxb6 axb6 16. Bd2 O-O 17. Rc1 Qd6 18. a3 e5 19. Ne2 Rae8 20. Bh3 f5 21. gxf6 Bxf6 {1-0 (58) Ziegler,A (2393)-Ingbrandt,J (2445) Sweden 2002}) 15. Bd2 {[%emt 0:08:08]} b6 {[%emt 0:03:38]} 16. cxb6 {[%emt 0:00:05]} Rxb6 {[%emt 0:01:40]} ({Better is} 16... Nxb6 $11 17. Qc2 Nc4) 17. Qc2 $14 {[%emt 0:00:08]} c5 {[%emt 0:15:48]} 18. Na4 {[%emt 0:00:21]} Rc6 {[%emt 0:00:09] [#] Hoping for ...cxd4.} 19. Rc1 {[%emt 0:00:23]} Ng3 $2 {[%emt 0:04:34] This costs Black the game.} 20. fxg3 $18 {[%emt 0:12:45]} Qxg3+ {[%emt 0:00:14]} 21. Kf1 {[%emt 0:00:05][%cal Ra4c5]} Rxh4 {[%emt 0:00:46]} 22. Rxh4 {[%emt 0:00:27]} (22. Nxc5 Rxh1+ 23. Bxh1 Nxc5 $18) 22... Qxh4 {[%emt 0:00:03]} 23. Qb3 {[%emt 0:01:19] [#] And now Qb7 would win.} ({Don't play} 23. Nxc5 Bxc5 24. Qa4 (24. dxc5 Rxc5 25. Qd1 Qxg5 $18) 24... Rc7) ({Not} 23. dxc5 Ne5 24. Be1 Qxg5 $16) 23... Qg3 {[%emt 0:11:54]} 24. Qb7 {[%emt 0:02:33]} Nb8 {[%emt 0:05:55]} 25. Nxc5 {[%emt 0:04:53] Black must now prevent e4.} Bxg5 {[%emt 0:01:44]} 26. Nd3 {[%emt 0:00:22]} Rxc1+ {[%emt 0:02:11]} 27. Nxc1 {[%emt 0:00:55]} (27. Bxc1 Nd7 28. Qc6 (28. Qxa7 Bxe3 29. Qa4 Ke7 $16) 28... Ke7 $18) 27... Nd7 {[%emt 0:03:02]} 28. Qc8+ {[%emt 0:00:34]} (28. Qxa7 $142 {Nd3 is the strong threat.} Ke7 29. Qa3+ Ke8 30. Qa8+ Qb8 31. Qxb8+ Nxb8 32. a4) 28... Ke7 $2 {[%emt 0:00:46]} (28... Bd8 29. e4 Qh4) 29. Bb4+ {[%emt 0:00:39] White is clearly winning.} Kf6 {[%emt 0:00:07]} 30. Qxd7 {[%emt 0:00:26]} Bxe3 {[%emt 0:00:54]} 31. Qe7+ {[%emt 0:00:10]} Kf5 {[%emt 0:00:23]} 32. Qxf7+ {[%emt 0:00:14]} Kg5 {[%emt 0:00:08]} 33. Ne2 {[%emt 0:00:25] Weighted Error Value: White=0.21 (precise) /Black=0.52} 1-0

[Event "67th Mexican-ch Open 2022"]
[Site "Chihuahua"]
[Date "2022.04.14"]
[Round "3.16"]
[White "Rivera Garcia, David Moises"]
[Black "Torres Rosas, Luis Carlos"]
[Result "0-1"]
[ECO "B94"]
[WhiteElo "1780"]
[BlackElo "2356"]
[Annotator "TA"]
[PlyCount "68"]
[EventDate "2022.04.12"]
[EventType "swiss"]
[EventCountry "MEX"]
[SourceTitle "playchess.com"]
[Source "ChessBase"]
[SourceQuality "1"]
[TimeControl "5400+30"]

{[%evp 13,67,0,45,10,42,0,0,-31,-37,-68,-60,-106,-90,-108,-109,-81,-56,-86,-77,-145,-79,-226,-235,-213,-213,-210,-146,-159,-142,-295,-289,-606,-578,-561,-485,-469,-463,-1115,-1100,-1411,-1339,-1459,-1359,-1406,-1381,-29990,-29991,-29993,-29994,-29994,-29995,-29995,-29996,-29998,-29999,-29999]} 1. e4 {[%emt 0:00:02]} c5 {[%emt 0:00:05]} 2. Nf3 {[%emt 0:00:04]} d6 {[%emt 0:00:08]} 3. d4 {[%emt 0:00:04]} cxd4 {[%emt 0:00:04]} 4. Nxd4 {[%emt 0:00:04]} Nf6 {[%emt 0:00:05]} 5. Nc3 {[%emt 0:00:03]} a6 {[%emt 0:02:08]} 6. Bg5 {[%emt 0:00:05]} Nbd7 {[%emt 0:00:18]} 7. Qd2 {[%emt 0:03:28] 7.Qe2 is a critical line.} b5 {[%emt 0:01:07]} 8. f3 {[%emt 0:02:43] B94: Sicilian Najdorf: 6 Bg5 Nbd7.} e6 {[%emt 0:07:03]} 9. O-O-O {[%emt 0:00:21]} Bb7 {[%emt 0:00:42]} 10. g3 {[%emt 0:07:34] [#] The position is equal.} Be7 $146 {[%emt 0:02:44]} ({Predecessor:} 10... h6 11. Be3 b4 12. Nce2 d5 13. exd5 Nxd5 14. Kb1 Bc5 15. Bg1 Qb6 16. Nb3 Bxg1 17. Nxg1 {0-1 (32) Sadiki,N (2188)-Ermenkov,E (2423) Struga 2013}) 11. Bg2 {[%emt 0:00:32]} Rc8 {[%emt 0:07:37]} 12. a3 {[%emt 0:03:34]} (12. Kb1 $15) 12... Ne5 {[%emt 0:04:45]} 13. f4 {[%emt 0:00:55]} Nc4 {[%emt 0:00:08]} 14. Qe2 {[%emt 0:00:06]} Qc7 {[%emt 0:05:07] Strongly threatening ...h6.} 15. Nb1 {[%emt 0:17:51]} O-O {[%emt 0:06:43]} 16. g4 {[%emt 0:05:15]} (16. Rhe1 $142) 16... Rfe8 {[%emt 0:04:15]} (16... h6 $142 17. Bh4 d5) 17. Bxf6 {[%emt 0:00:41]} (17. h4 $17) 17... Bxf6 $19 {[%emt 0:00:51]} ({Worse is} 17... gxf6 18. Qf2) 18. g5 {[%emt 0:00:44]} Bxd4 {[%emt 0:07:18]} 19. Rxd4 {[%emt 0:00:02]} e5 {[%emt 0:00:17]} 20. fxe5 {[%emt 0:01:55]} Rxe5 $40 {[%emt 0:03:22][%mdl 128] White is in trouble.} 21. b3 $2 {[%emt 0:03:46] This costs White the game.} (21. h4 $17 {keeps fighting.}) 21... Ne3 {[%emt 0:02:04][%cal Rc7c2]} 22. c4 {[%emt 0:01:08] [#]} (22. c3 Nf5 23. Rd2) 22... bxc4 $1 {[%emt 0:07:41]} 23. b4 {[%emt 0:00:33]} Nxg2 {[%emt 0:01:28]} 24. Qxg2 {[%emt 0:00:03]} c3 {[%emt 0:00:22]} 25. Kc2 {[%emt 0:11:47]} (25. Qf3 $142) 25... Qe7 {[%emt 0:01:13][%csl LRe4,LRg5][%cal Re5e4]} 26. Re1 {[%emt 0:03:07]} Qe6 {[%emt 0:03:55] ( -> ...Qa2+)} 27. Re2 {[%emt 0:01:20] [#]} Rxg5 $3 {[%emt 0:01:02][%mdl 512]} 28. Qxg5 {[%emt 0:00:44]} Qa2+ {[%emt 0:00:02][%mdl 64] Skewer} 29. Kc1 {[%emt 0:05:16]} Qxe2 {[%emt 0:00:40] Black mates.} 30. Rxd6 {[%emt 0:00:18]} Qb2+ {[%emt 0:00:14]} 31. Kd1 {[%emt 0:00:05]} c2+ {[%emt 0:00:10]} 32. Ke2 {[%emt 0:00:18]} cxb1=Q+ {[%emt 0:00:40]} 33. Kf3 {[%emt 0:00:16]} Qxe4+ {[%emt 0:00:08]} 34. Kg3 {[%emt 0:00:09]} Qbg2# {[%emt 0:00:07] Weighted Error Value: White=0.95/Black=0.14 (very precise)} 0-1

[Event "67th Mexican-ch Open 2022"]
[Site "Chihuahua"]
[Date "2022.04.14"]
[Round "3.17"]
[White "Pena Davalos, David"]
[Black "Garcia Guerrero, Isaac Antonio"]
[Result "0-1"]
[ECO "A37"]
[WhiteElo "1761"]
[BlackElo "2338"]
[Annotator "TA"]
[PlyCount "58"]
[EventDate "2022.04.12"]
[EventType "swiss"]
[EventCountry "MEX"]
[SourceTitle "playchess.com"]
[Source "ChessBase"]
[SourceQuality "1"]
[TimeControl "5400+30"]

{[%evp 15,57,0,4,0,0,0,26,23,50,-147,-141,-173,-178,-169,-128,-127,-152,-139,-148,-187,-199,-195,-209,-270,-265,-276,-261,-267,-274,-261,-214,-363,-258,-29994,-29995,-29995,-29996,-29996,-29997,-29997,-29998,-29998,-29999,-29999]} 1. Nf3 {[%emt 0:00:03] Milov,V} c5 {[%emt 0:05:47]} 2. c4 {[%emt 0:00:14]} g6 {[%emt 0:00:24]} 3. g3 {[%emt 0:00:15]} Bg7 {[%emt 0:00:13]} 4. Bg2 {[%emt 0:00:15]} Nc6 {[%emt 0:00:32]} 5. O-O {[%emt 0:00:33]} d6 {[%emt 0:01:21]} 6. Nc3 {[%emt 0:01:23]} e6 {[%emt 0:00:56]} 7. e3 {[%emt 0:07:34]} Nge7 {[%emt 0:02:43][%cal Bg8e7,Be7f5,Bf5h4][%mdl 32]} 8. d4 {[%emt 0:04:50]} O-O {[%emt 0:02:45]} 9. d5 {[%emt 0:07:03] 9.Re1 is the modern continuation. A37: Symmetrical English vs ...g6: 4 Bg2 Bg7 5 Nf3.} Na5 {[%emt 0:01:42]} 10. Nd2 {[%emt 0:02:39]} exd5 {[%emt 0:09:04]} 11. cxd5 {[%emt 0:04:50] White has an edge.} Nf5 {[%emt 0:03:04] [#]} 12. g4 $146 {[%emt 0:10:44]} (12. Rb1 $14 {stays ahead.}) ({Predecessor:} 12. Nb3) 12... Nh4 $17 {[%emt 0:01:44]} 13. h3 {[%emt 0:06:19]} f5 {[%emt 0:03:36][%cal Oh7h5]} 14. f4 {[%emt 0:02:11]} fxg4 {[%emt 0:12:35]} 15. hxg4 {[%emt 0:00:17]} Nxg2 {[%emt 0:00:14]} 16. Kxg2 {[%emt 0:00:43]} Qh4 {[%emt 0:00:12]} 17. Rh1 {[%emt 0:05:14]} Qxg4+ {[%emt 0:00:18]} 18. Qxg4 {[%emt 0:00:10]} Bxg4 {[%emt 0:00:09]} 19. Nb5 {[%emt 0:07:19]} Rae8 {[%emt 0:12:29]} 20. Re1 {[%emt 0:11:44] [#]} Rxf4 $3 {[%emt 0:04:23][%mdl 512] ...Rff8 is the strong threat.} 21. Nxd6 {[%emt 0:00:28]} Re7 {[%emt 0:01:10][%cal Be8e7,Be7g7,Bg7g6][%mdl 32] Threatens to win with ...Rf6.} 22. Kg3 {[%emt 0:05:46]} Rb4 {[%emt 0:04:47] And now ...Be5+ would win.} 23. a3 {[%emt 0:01:14]} (23. e4 $142 h5 24. Nf3) 23... Be5+ {[%emt 0:00:17]} 24. Kh4 $2 {[%emt 0:02:45] [#]} (24. Kg2 $19 Ra4 25. N6e4) 24... g5+ {[%emt 0:01:20] Black mates.} 25. Kxg5 {[%emt 0:00:23]} Rg7+ {[%emt 0:01:26]} 26. Kh4 {[%emt 0:00:45]} Bd7+ {[%emt 0:00:50] This bishop pair is nice.} 27. axb4 {[%emt 0:05:35]} Bg3+ {[%emt 0:00:12]} 28. Kh5 {[%emt 0:00:09]} Bg4+ {[%emt 0:00:10]} 29. Kh6 {[%emt 0:00:07]} Rg6# {[%emt 0:00:07] Weighted Error Value: White=0.91/Black=0.12 (very precise)} 0-1